bitfinex/quotes_BTCUSD_20260127
["timestamp","ask_amount","ask_price","bid_price","bid_amount"]
[1769510347695,0.02844982,87874.0,87860.0,0.33956535]
[1769510348536,0.02844982,87874.0,87858.0,0.03594372]
[1769510348738,0.02844982,87874.0,87860.0,0.33956535]
[1769510351109,0.02271124,87873.0,87860.0,0.33956535]
[1769510351346,0.02845047,87872.0,87856.0,0.14702161]
[1769510351775,0.02271124,87871.0,87856.0,0.14702161]
[1769510351977,0.02845112,87870.0,87856.0,0.14702161]
[1769510352198,0.02845112,87870.0,87852.0,0.0359445]
[1769510352405,0.02271124,87870.0,87852.0,0.02456172]
[1769510352624,0.02845144,87869.0,87852.0,0.0359445]
[1769510352846,0.02845144,87869.0,87853.0,0.01138265]
[1769510353064,0.02845144,87869.0,87853.0,0.0682954]
[1769510353286,0.02845144,87869.0,87852.0,0.0359445]
[1769510354407,0.02845144,87869.0,87853.0,0.01138265]
[1769510355043,0.02845144,87869.0,87852.0,0.09285829]
[1769510355874,0.02845144,87869.0,87852.0,0.09320219]
[1769510356494,0.02845144,87869.0,87853.0,0.01138265]
[1769510356704,0.02845144,87869.0,87852.0,0.09320219]
[1769510356891,0.02845144,87869.0,87853.0,0.06829584]
[1769510357120,0.02845144,87869.0,87853.0,0.01138265]
[1769510357805,0.02845144,87869.0,87853.0,0.06829543]
[1769510358050,0.02845144,87869.0,87853.0,0.01138265]
[1769510358982,0.02845144,87869.0,87853.0,0.15840426]
[1769510359609,0.02845144,87869.0,87854.0,0.01138252]
[1769510359830,0.02845144,87869.0,87854.0,0.06829512]
[1769510360050,0.02845144,87869.0,87856.0,0.06829311]
[1769510360269,0.02845144,87869.0,87859.0,0.33976222]
[1769510361003,0.02845144,87869.0,87859.0,0.0001956]
[1769510362203,0.02845079,87871.0,87859.0,0.0001956]
[1769510369849,0.13751226,87872.0,87859.0,0.0001956]
[1769510372092,0.02845079,87871.0,87859.0,0.0001956]
[1769510376745,0.13751226,87872.0,87859.0,0.0001956]
[1769510377167,0.02845079,87871.0,87859.0,0.0001956]
[1769510385591,0.0445667,87877.0,87864.0,0.01138122]
[1769510385782,0.0445667,87877.0,87865.0,0.02350523]
[1769510393098,0.0445667,87877.0,87865.0,0.03488632]
[1769510393729,0.0445667,87877.0,87865.0,0.02350523]
[1769510393934,0.0445667,87877.0,87865.0,0.03488632]
[1769510394836,0.0445667,87877.0,87865.0,0.02350523]
[1769510396277,0.0445667,87877.0,87862.0,0.06828887]
[1769510396494,0.0445667,87877.0,87863.0,0.01138135]
[1769510396670,0.0445667,87877.0,87861.0,0.01157721]
[1769510396871,0.0445667,87877.0,87861.0,0.06848505]
[1769510397226,0.02844917,87876.0,87861.0,0.0001956]
[1769510398478,0.02844917,87876.0,87861.0,0.01157721]
[1769510398904,0.02844917,87876.0,87862.0,0.01138148]
[1769510399076,0.02844917,87876.0,87861.0,0.06848518]
[1769510399514,0.02844917,87876.0,87861.0,0.01157721]
[1769510399689,0.02844917,87876.0,87862.0,0.01138148]
[1769510400034,0.02844917,87876.0,87862.0,0.06828889]
[1769510400242,0.02844917,87876.0,87863.0,0.01138135]
[1769510400651,0.0445667,87877.0,87866.0,0.01138096]
[1769510400859,0.0445667,87877.0,87867.0,0.16030274]
[1769510401060,0.0445667,87877.0,87869.0,0.1371274]
[1769510401707,0.02431646,87893.0,87877.0,0.00024667]
[1769510401913,0.0568963,87887.0,87878.0,0.02515885]
[1769510402553,0.0001483,87901.0,87881.0,0.01137902]
[1769510402763,0.0001483,87901.0,87892.0,0.01137759]
[1769510403021,0.0001483,87901.0,87900.0,0.05688282]
[1769510403641,0.0001483,87901.0,87898.0,0.01137682]
[1769510403858,0.0001483,87901.0,87899.0,0.02508971]
[1769510404330,0.0001483,87910.0,87899.0,0.0364664]
[1769510404746,0.0001483,87910.0,87901.0,0.01137643]
[1769510404947,0.0001483,87910.0,87902.0,0.0183164]
[1769510405568,0.0001483,87910.0,87902.0,0.00856308]
[1769510405977,0.16738242,87910.0,87902.0,0.00856308]
[1769510406194,0.02431646,87909.0,87902.0,0.00856308]
[1769510406401,0.14306596,87910.0,87902.0,0.00856308]
[1769510406402,0.0001483,87910.0,87902.0,0.00856308]
[1769510406607,0.0001483,87910.0,87902.0,0.01993938]
[1769510407016,0.0001483,87910.0,87904.0,0.01137604]
[1769510407368,0.02843623,87916.0,87904.0,0.1371274]
[1769510407578,0.02843623,87916.0,87906.0,0.1371274]
[1769510409396,0.02843623,87916.0,87901.0,0.01137643]
[1769510409397,0.05687822,87917.0,87907.0,0.02317534]
[1769510409604,0.0001483,87919.0,87910.0,0.1371274]
[1769510409799,0.0001483,87919.0,87912.0,0.16030274]
[1769510410003,0.0001483,87919.0,87913.0,0.16030274]
[1769510410200,0.05701189,87919.0,87913.0,0.16030274]
[1769510411563,0.05701189,87919.0,87901.0,0.0568818]
[1769510411564,0.05701189,87919.0,87901.0,0.1371274]
[1769510411745,0.05701189,87919.0,87903.0,0.1371274]
[1769510411915,0.05701189,87919.0,87905.0,0.1371274]
[1769510414958,0.05701189,87919.0,87900.0,0.35078853]
[1769510414959,0.05701189,87919.0,87907.0,0.1371274]
[1769510415165,0.05701189,87919.0,87907.0,0.14480809]
[1769510420742,0.05701189,87919.0,87908.0,0.02275105]
[1769510420929,0.05701189,87919.0,87909.0,0.1371274]
[1769510421371,0.05701189,87919.0,87910.0,0.13565527]
[1769510429218,0.02565736,87935.0,87906.0,0.03412735]
[1769510429219,0.02565736,87935.0,87909.0,0.35078736]
[1769510429450,0.02565736,87935.0,87911.0,0.14761776]
[1769510429639,0.0001483,87936.0,87912.0,0.14761776]
[1769510429845,0.05686895,87922.0,87912.0,0.15899277]
[1769510430081,0.05686895,87922.0,87912.0,0.14761776]
[1769510430221,0.05686895,87922.0,87912.0,0.15899277]
[1769510431323,0.05686895,87922.0,87913.0,0.01137488]
[1769510431531,0.05686895,87922.0,87914.0,0.15899251]
[1769510431736,0.05686895,87932.0,87914.0,0.15899251]
[1769510432110,0.33941197,87930.0,87916.0,0.15080083]
[1769510432310,0.05686895,87932.0,87916.0,0.15080083]
[1769510432696,0.05686895,87932.0,87916.0,0.14761776]
[1769510432898,0.05686895,87932.0,87918.0,0.14761776]
[1769510434278,0.05686895,87932.0,87919.0,0.00318307]
[1769510434522,0.05686895,87932.0,87920.0,0.14761776]
[1769510436369,0.05686895,87932.0,87920.0,0.14696638]
[1769510438148,0.05686895,87932.0,87920.0,0.16653115]
[1769510439095,0.17017808,87931.0,87920.0,0.01956477]
[1769510439530,0.17017808,87931.0,87917.0,0.06824605]
[1769510439712,0.17017808,87931.0,87917.0,0.01137436]
[1769510439908,0.17017808,87931.0,87918.0,0.01137423]
[1769510440111,0.02330745,87930.0,87915.0,0.03412386]
[1769510440319,0.02330745,87930.0,87915.0,0.09099671]
[1769510440518,0.14687063,87930.0,87916.0,0.01137449]
[1769510440695,0.02330745,87929.0,87915.0,0.09099671]
[1769510440917,0.02330745,87929.0,87916.0,0.01137449]
[1769510441664,0.02330745,87929.0,87917.0,0.02274872]
[1769510443579,0.02330745,87929.0,87915.0,0.01137462]
[1769510443714,0.02330745,87929.0,87916.0,0.02274898]
[1769510443918,0.02330745,87929.0,87919.0,0.33941197]
[1769510444117,0.02330745,87929.0,87919.0,0.40765603]
[1769510444317,0.02330745,87929.0,87917.0,0.01137436]
[1769510444573,0.02330745,87929.0,87915.0,0.01137462]
[1769510444949,0.02300745,87929.0,87916.0,0.06824667]
[1769510445139,0.02300745,87929.0,87916.0,0.01137449]
[1769510445333,0.14687063,87928.0,87911.0,0.07593099]
[1769510445559,0.14687063,87928.0,87912.0,0.02245002]
[1769510445724,0.02330745,87927.0,87912.0,0.02245002]
[1769510445936,0.02330745,87927.0,87911.0,0.04150612]
[1769510446363,0.02330745,87927.0,87912.0,0.06825006]
[1769510446783,0.02330745,87927.0,87912.0,0.01137501]
[1769510446982,0.02330745,87927.0,87912.0,0.06824983]
[1769510447416,0.02330745,87927.0,87912.0,0.01137501]
[1769510447965,0.02330745,87927.0,87914.0,0.01137475]
[1769510448115,0.02330745,87927.0,87915.0,0.06824751]
[1769510448331,0.14687063,87928.0,87916.0,0.01137449]
[1769510448532,0.00030939,87931.0,87917.0,0.06824573]
[1769510448762,0.00030939,87931.0,87918.0,0.06824523]
[1769510448961,0.00030939,87931.0,87919.0,0.06824459]
[1769510449134,0.00030939,87931.0,87920.0,0.33941197]
[1769510449333,0.00030939,87931.0,87919.0,0.06824462]
[1769510449557,0.00030939,87931.0,87918.0,0.01137423]
[1769510451245,0.00030939,87931.0,87918.0,0.06824534]
[1769510451735,0.14687063,87930.0,87911.0,0.01137514]
[1769510451963,0.14687063,87928.0,87910.0,0.40766305]
[1769510452169,0.14687063,87926.0,87910.0,0.35078724]
[1769510452395,0.14687063,87926.0,87910.0,0.01137527]
[1769510452621,0.00030939,87925.0,87909.0,0.02305522]
[1769510452838,0.02330745,87928.0,87909.0,0.02305522]
[1769510452839,0.14687063,87924.0,87909.0,0.03443061]
[1769510453367,0.14687063,87924.0,87910.0,0.01137527]
[1769510453774,0.14687063,87924.0,87909.0,0.0913076]
[1769510453992,0.14687063,87924.0,87910.0,0.06825146]
[1769510454185,0.14687063,87924.0,87911.0,0.01137514]
[1769510454356,0.14687063,87924.0,87909.0,0.0913076]
[1769510454357,0.14687063,87924.0,87909.0,0.02305522]
[1769510454974,0.1709158,87924.0,87909.0,0.02305522]
[1769510455665,0.14687063,87924.0,87913.0,0.01137488]
[1769510456045,0.13941256,87930.0,87912.0,0.03421289]
[1769510456231,0.13941256,87928.0,87913.0,0.03421276]
[1769510456433,0.00030939,87927.0,87913.0,0.02283788]
[1769510456638,0.13941256,87927.0,87913.0,0.02283788]
[1769510456819,0.00030939,87926.0,87914.0,0.0227495]
[1769510457021,0.13941256,87925.0,87913.0,0.02283788]
[1769510458340,0.15740801,87925.0,87906.0,0.03421366]
[1769510459359,0.15740801,87925.0,87906.0,0.02283788]
[1769510460751,0.15740801,87925.0,87898.0,0.15364534]
[1769510460752,0.33941197,87916.0,87899.0,0.02283788]
[1769510460983,0.13941256,87909.0,87896.0,0.0001483]
[1769510462677,0.13941256,87909.0,87897.0,0.01137695]
[1769510463723,0.13941256,87909.0,87900.0,0.05688269]
[1769510463923,0.13941256,87909.0,87902.0,0.0113763]
[1769510464379,0.13941256,87909.0,87903.0,0.01137617]
[1769510464593,0.13941256,87909.0,87902.0,0.0113763]
[1769510465263,0.02068504,87908.0,87881.0,0.05015788]
[1769510465478,0.13941256,87899.0,87883.0,0.01137876]
[1769510465878,0.13941256,87899.0,87882.0,0.08252114]
[1769510466165,0.13941256,87899.0,87882.0,0.01137889]
[1769510466361,0.13941256,87899.0,87881.0,0.02283788]
[1769510466930,0.13941256,87899.0,87883.0,0.000232]
[1769510467588,0.35376418,87900.0,87883.0,0.000232]
[1769510467589,0.13941256,87897.0,87883.0,0.000232]
[1769510467728,0.13941256,87895.0,87883.0,0.000232]
[1769510469048,0.05500457,87895.0,87883.0,0.000232]
[1769510469247,0.13941256,87894.0,87883.0,0.000232]
[1769510470262,0.13941256,87895.0,87874.0,0.0001548]
[1769510470477,0.00430476,87892.0,87874.0,0.0001548]
[1769510470698,0.13941256,87891.0,87874.0,0.0001548]
[1769510472261,0.00032277,87886.0,87865.0,0.09327959]
[1769510472431,0.13941256,87885.0,87866.0,0.03621957]
[1769510472636,0.13941256,87885.0,87866.0,0.02483861]
[1769510472850,0.13941256,87885.0,87870.0,0.33941197]
[1769510474413,0.13941256,87885.0,87870.0,0.36771099]
[1769510475571,0.13941256,87885.0,87870.0,0.36794758]
[1769510475855,0.13941256,87885.0,87870.0,0.33964856]
[1769510476058,0.13941256,87885.0,87871.0,0.03054805]
[1769510480698,0.16247481,87884.0,87871.0,0.03054805]
[1769510482469,0.14320833,87883.0,87865.0,0.0001548]
[1769510482688,0.14320833,87881.0,87866.0,0.03729571]
[1769510485371,0.14821108,87880.0,87866.0,0.03729571]
[1769510486730,0.02306225,87879.0,87866.0,0.03729571]
[1769510487021,0.14821108,87880.0,87866.0,0.03729571]
[1769510487230,0.17127333,87879.0,87866.0,0.03729571]
[1769510491495,0.17127333,87879.0,87865.0,0.0001548]
[1769510491496,0.13109585,87879.0,87867.0,0.02276167]
[1769510491711,0.05686895,87886.0,87868.0,0.04974917]
[1769510491712,0.14821108,87885.0,87868.0,0.04974917]
[1769510491928,0.14821108,87885.0,87870.0,0.04404314]
[1769510492103,0.14821108,87885.0,87871.0,0.02276063]
[1769510492283,0.14821108,87885.0,87871.0,0.04404314]
[1769510492904,0.05686895,87886.0,87871.0,0.1527328]
[1769510493135,0.05686895,87886.0,87872.0,0.04404314]
[1769510495141,0.05670606,87886.0,87872.0,0.04404314]
[1769510495358,0.05670606,87886.0,87872.0,0.1527328]
[1769510495581,0.05670606,87886.0,87873.0,0.04629208]
[1769510498122,0.20491714,87886.0,87873.0,0.04629208]
[1769510500452,0.05670606,87886.0,87873.0,0.04629208]
[1769510501487,0.11375279,87885.0,87873.0,0.04629208]
[1769510501688,0.05670606,87886.0,87873.0,0.04629208]
[1769510502077,0.11375279,87885.0,87873.0,0.04629208]
[1769510502222,0.05670606,87886.0,87873.0,0.04629208]
[1769510502427,0.11375614,87885.0,87873.0,0.04629208]
[1769510502632,0.05670606,87886.0,87873.0,0.04629208]
[1769510502836,0.11375625,87885.0,87873.0,0.04629208]
[1769510503042,0.05670606,87886.0,87873.0,0.04629208]
[1769510503242,0.11375928,87885.0,87873.0,0.04629208]
[1769510503448,0.05670606,87886.0,87873.0,0.04629208]
[1769510503645,0.11375933,87885.0,87873.0,0.04629208]
[1769510503832,0.05670606,87886.0,87873.0,0.04629208]
[1769510504032,0.11375933,87885.0,87873.0,0.04629208]
[1769510504233,0.05670606,87886.0,87873.0,0.04629208]
[1769510504435,0.11376163,87885.0,87873.0,0.04629208]
[1769510504642,0.14821108,87884.0,87865.0,0.0001548]
[1769510504844,0.05670606,87886.0,87865.0,0.0001548]
[1769510504845,0.14821108,87882.0,87866.0,0.04404316]
[1769510508087,0.14821108,87882.0,87865.0,0.01153589]
[1769510508287,0.14821108,87882.0,87867.0,0.04179403]
[1769510510954,0.14804818,87882.0,87867.0,0.04179403]
[1769510511174,0.14804818,87882.0,87867.0,0.01138083]
[1769510511476,0.14804818,87882.0,87868.0,0.04179403]
[1769510512624,0.14788523,87882.0,87868.0,0.04179403]
[1769510512957,0.14772228,87882.0,87868.0,0.04179403]
[1769510515520,0.14772228,87882.0,87862.0,0.01138148]
[1769510515521,0.25301359,87897.0,87851.0,0.0113829]
[1769510515522,0.15139733,87871.0,87851.0,0.0113829]
[1769510515704,0.15139733,87871.0,87854.0,0.01138252]
[1769510515927,0.15139733,87871.0,87853.0,0.01138265]
[1769510516154,0.15107137,87871.0,87853.0,0.03954494]
[1769510516409,0.15107137,87871.0,87855.0,0.03969974]
[1769510516821,0.15107137,87871.0,87857.0,0.03954494]
[1769510517045,0.15009347,87871.0,87858.0,0.022764]
[1769510517275,0.14944136,87871.0,87858.0,0.022764]
[1769510517503,0.14944136,87871.0,87858.0,0.06230894]
[1769510517746,0.14944136,87871.0,87859.0,0.02218178]
[1769510517957,0.14944136,87871.0,87860.0,0.02276348]
[1769510520500,0.14944136,87871.0,87858.0,0.03954494]
[1769510520862,0.33964856,87870.0,87858.0,0.03954494]
[1769510521080,0.49104589,87870.0,87858.0,0.03954494]
[1769510521298,0.15139733,87870.0,87858.0,0.03954494]
[1769510521862,0.15139733,87870.0,87854.0,0.01151502]
[1769510521863,0.05670606,87873.0,87859.0,0.02276374]
[1769510522090,0.05670606,87873.0,87860.0,0.03954494]
[1769510522290,0.05670606,87873.0,87861.0,0.06230816]
[1769510522712,0.15139733,87872.0,87861.0,0.06230816]
[1769510524701,0.15107131,87872.0,87861.0,0.06230816]
[1769510524915,0.15107131,87872.0,87861.0,0.07651984]
[1769510526876,0.15107131,87872.0,87861.0,0.0369749]
[1769510527050,0.15139733,87872.0,87855.0,0.03279771]
[1769510527858,0.15139733,87872.0,87854.0,0.0001325]
[1769510528037,0.15139733,87872.0,87855.0,0.03054865]
[1769510528219,0.15139733,87872.0,87855.0,0.01138239]
[1769510528420,0.15139733,87872.0,87856.0,0.03054865]
[1769510528789,0.15139733,87872.0,87857.0,0.03054865]
[1769510528910,0.15139733,87872.0,87857.0,0.04193078]
[1769510529115,0.15139733,87872.0,87856.0,0.01138226]
[1769510529340,0.15139733,87872.0,87858.0,0.03054865]
[1769510535064,0.15123431,87872.0,87858.0,0.03054865]
[1769510537832,0.15123431,87872.0,87859.0,0.02443195]
[1769510538691,0.15107131,87872.0,87860.0,0.02276348]
[1769510539103,0.15090819,87872.0,87860.0,0.02276348]
[1769510539308,0.15090819,87872.0,87859.0,0.02443195]
[1769510539823,0.15058175,87872.0,87859.0,0.02443195]
[1769510540005,0.15058175,87872.0,87860.0,0.01497717]
[1769510540827,0.15058175,87872.0,87859.0,0.02443195]
[1769510541879,0.14819279,87869.0,87859.0,0.02443195]
[1769510544259,0.00016301,87868.0,87859.0,0.02443195]
[1769510547784,0.00016301,87868.0,87859.0,0.04719568]
[1769510547979,0.00016301,87868.0,87859.0,0.02443195]
[1769510559180,0.14434666,87870.0,87859.0,0.02443195]
[1769510560192,0.00016301,87869.0,87859.0,0.02443195]
[1769510562750,0.14450967,87869.0,87859.0,0.02443195]
[1769510563145,0.14450967,87869.0,87854.0,0.02289754]
[1769510563540,0.14450967,87869.0,87855.0,0.02318495]
[1769510570658,0.14450967,87869.0,87855.0,0.01138239]
[1769510570813,0.14450967,87869.0,87857.0,0.02318495]
[1769510571012,0.14450967,87869.0,87858.0,0.03799585]
[1769510571360,0.14450967,87869.0,87858.0,0.02318495]
[1769510571586,0.14450967,87869.0,87859.0,0.02276374]
[1769510575186,0.14434666,87869.0,87859.0,0.02276374]
[1769510576214,0.00016301,87868.0,87859.0,0.02276374]
[1769510584065,0.00016301,87868.0,87859.0,0.04784244]
[1769510584587,0.00016301,87868.0,87859.0,0.0250787]
[1769510584986,0.00016301,87868.0,87859.0,0.04784217]
[1769510585187,0.00016301,87868.0,87859.0,0.0250787]
[1769510589280,0.00016301,87868.0,87859.0,0.03646057]
[1769510589492,0.00016301,87868.0,87859.0,0.09336969]
[1769510589693,0.00016301,87868.0,87862.0,0.01138148]
[1769510589913,0.00016301,87868.0,87861.0,0.01138161]
[1769510591188,0.14434666,87869.0,87861.0,0.01138161]
[1769510591823,0.14434666,87869.0,87860.0,0.06829038]
[1769510592326,0.00016301,87868.0,87860.0,0.01138174]
[1769510592526,0.00016301,87868.0,87861.0,0.01138161]
[1769510593288,0.00016301,87868.0,87861.0,0.06828963]
[1769510593457,0.00016301,87868.0,87861.0,0.01138161]
[1769510593867,0.00016301,87868.0,87861.0,0.06828962]
[1769510594519,0.00016301,87868.0,87860.0,0.01138174]
[1769510595373,0.00016301,87868.0,87860.0,0.06829011]
[1769510595612,0.00016301,87868.0,87861.0,0.0250787]
[1769510595955,0.00016301,87868.0,87861.0,0.03646031]
[1769510596193,0.00016301,87868.0,87861.0,0.0250787]
[1769510599291,0.00016301,87868.0,87861.0,0.03646031]
[1769510599854,0.00016301,87868.0,87861.0,0.0250787]
[1769510600237,0.00016301,87868.0,87861.0,0.03646031]
[1769510600384,0.00016301,87868.0,87861.0,0.0250787]
[1769510601286,0.0001614,87875.0,87858.0,0.011382]
[1769510601287,0.0001614,87875.0,87868.0,0.00016301]
[1769510601490,0.13649165,87898.0,87874.0,0.03645863]
[1769510601491,0.14835091,87888.0,87874.0,0.03645863]
[1769510601697,0.14835091,87888.0,87872.0,0.16998466]
[1769510601698,0.05692297,87887.0,87877.0,0.01137954]
[1769510601898,0.05692297,87887.0,87878.0,0.0250787]
[1769510606238,0.14843507,87886.0,87867.0,0.01138083]
[1769510606445,0.14843507,87885.0,87868.0,0.0113807]
[1769510606643,0.14843507,87885.0,87869.0,0.0232537]
[1769510607828,0.14843507,87885.0,87869.0,0.03463427]
[1769510608029,0.14843507,87885.0,87869.0,0.0232537]
[1769510609013,0.05692297,87887.0,87869.0,0.0232537]
[1769510609184,0.05692297,87887.0,87870.0,0.01138044]
[1769510609338,0.05692297,87887.0,87871.0,0.01897995]
[1769510609963,0.14843507,87885.0,87871.0,0.01897995]
[1769510614623,0.05692297,87887.0,87871.0,0.01897995]
[1769510614827,0.14843507,87885.0,87871.0,0.01897995]
[1769510617673,0.14858327,87884.0,87871.0,0.01897995]
[1769510618681,0.14858327,87884.0,87871.0,0.03036026]
[1769510618885,0.14858327,87884.0,87871.0,0.01897995]
[1769510619084,0.14858327,87884.0,87871.0,0.03036026]
[1769510619287,0.14858327,87884.0,87871.0,0.01897995]
[1769510619727,0.14858327,87884.0,87871.0,0.03381705]
[1769510619904,0.14858327,87884.0,87870.0,0.0232537]
[1769510620073,0.14858327,87884.0,87870.0,0.03463414]
[1769510621334,0.14858327,87884.0,87870.0,0.0232537]
[1769510621503,0.14858327,87884.0,87870.0,0.03463414]
[1769510622478,0.14858327,87884.0,87870.0,0.0232537]
[1769510623052,0.14858327,87884.0,87870.0,0.03463414]
[1769510623259,0.14858327,87884.0,87870.0,0.09153638]
[1769510623457,0.14841985,87884.0,87870.0,0.09153638]
[1769510623665,0.14841985,87884.0,87870.0,0.03463414]
[1769510623990,0.14841985,87884.0,87871.0,0.01138031]
[1769510624343,0.14841985,87884.0,87871.0,0.01500421]
[1769510624749,0.14841985,87884.0,87870.0,0.03463414]
[1769510624973,0.14841985,87884.0,87871.0,0.01500421]
[1769510625288,0.14841985,87884.0,87871.0,0.02638452]
[1769510625485,0.14841985,87884.0,87871.0,0.01500421]
[1769510626338,0.14841985,87884.0,87871.0,0.02638452]
[1769510627056,0.14841985,87884.0,87871.0,0.01500421]
[1769510627729,0.14841985,87884.0,87869.0,0.06828317]
[1769510627730,0.14841985,87884.0,87852.0,0.0232537]
[1769510627731,0.14843507,87879.0,87852.0,0.0232537]
[1769510627928,0.05714994,87884.0,87852.0,0.0232537]
[1769510627929,0.14843507,87869.0,87852.0,0.03463648]
[1769510628142,0.3967016,87872.0,87852.0,0.03463648]
[1769510628143,0.14827157,87867.0,87852.0,0.0232537]
[1769510628340,0.14827157,87867.0,87854.0,0.01177842]
[1769510629103,0.14827157,87867.0,87852.0,0.03463648]
[1769510629301,0.14827157,87867.0,87852.0,0.0232537]
[1769510629505,0.14827157,87867.0,87853.0,0.0001174]
[1769510631790,0.17316751,87867.0,87853.0,0.0001174]
[1769510636875,0.17300402,87867.0,87853.0,0.0001174]
[1769510637317,0.01500421,87866.0,87853.0,0.0001174]
[1769510638711,0.01500421,87866.0,87853.0,0.01150005]
[1769510638904,0.01500421,87866.0,87853.0,0.0001174]
[1769510639954,0.01500421,87866.0,87853.0,0.01150005]
[1769510640580,0.01500421,87866.0,87853.0,0.0001174]
[1769510641345,0.01500421,87866.0,87853.0,0.06841306]
[1769510641880,0.01500421,87866.0,87853.0,0.01150005]
[1769510642310,0.01500421,87866.0,87853.0,0.0001174]
[1769510647586,0.03939698,87866.0,87853.0,0.0001174]
[1769510647790,0.18212394,87866.0,87853.0,0.0001174]
[1769510650442,0.01500421,87864.0,87853.0,0.0001174]
[1769510650656,0.03939698,87864.0,87853.0,0.0001174]
[1769510650857,0.03939698,87864.0,87853.0,0.01150005]
[1769510651297,0.03939698,87864.0,87853.0,0.05703046]
[1769510651456,0.03939698,87864.0,87854.0,0.01138252]
[1769510651662,0.03939698,87864.0,87853.0,0.0001174]
[1769510653806,0.03939698,87864.0,87853.0,0.01150005]
[1769510654607,0.03939698,87864.0,87853.0,0.0001174]
[1769510657049,0.03939698,87864.0,87853.0,0.01150005]
[1769510658517,0.03939698,87864.0,87854.0,0.01138252]
[1769510658734,0.03939698,87864.0,87853.0,0.06841311]
[1769510659354,0.03939698,87864.0,87853.0,0.0001174]
[1769510659557,0.03939698,87864.0,87853.0,0.0684131]
[1769510660794,0.03939698,87864.0,87854.0,0.01138252]
[1769510661036,0.03939698,87864.0,87853.0,0.01150005]
[1769510661237,0.03939698,87864.0,87854.0,0.01138252]
[1769510661477,0.03939698,87864.0,87853.0,0.0001174]
[1769510666645,0.01500421,87864.0,87853.0,0.01150005]
[1769510666851,0.01500421,87865.0,87854.0,0.01138252]
[1769510667252,0.01500421,87865.0,87853.0,0.06841309]
[1769510667559,0.01500421,87865.0,87853.0,0.0001174]
[1769510667764,0.01500421,87865.0,87853.0,0.01150005]
[1769510668549,0.01500421,87865.0,87854.0,0.01138252]
[1769510668790,0.01500421,87865.0,87853.0,0.06841329]
[1769510669447,0.01500421,87865.0,87853.0,0.01150005]
[1769510670779,0.01500421,87865.0,87853.0,0.06841325]
[1769510672528,0.01500421,87865.0,87853.0,0.0001174]
[1769510672736,0.01500421,87865.0,87853.0,0.01150005]
[1769510673926,0.01500421,87865.0,87854.0,0.01138252]
[1769510674062,0.01500421,87865.0,87853.0,0.01150005]
[1769510674652,0.01500421,87865.0,87853.0,0.06841323]
[1769510674880,0.01500421,87865.0,87853.0,0.01150005]
[1769510675481,0.01500421,87865.0,87853.0,0.06841327]
[1769510675903,0.01500421,87865.0,87853.0,0.06841329]
[1769510676119,0.01500421,87865.0,87853.0,0.01150005]
[1769510676909,0.01500421,87865.0,87854.0,0.01138252]
[1769510677098,0.01500421,87865.0,87853.0,0.06841289]
[1769510677275,0.01500421,87865.0,87853.0,0.01150005]
[1769510678570,0.01500421,87865.0,87854.0,0.01138252]
[1769510678770,0.01500421,87865.0,87853.0,0.01150005]
[1769510679858,0.01500421,87865.0,87854.0,0.00113706]
[1769510680087,0.01500421,87865.0,87854.0,0.02206349]
[1769510680472,0.01500421,87865.0,87854.0,0.03344601]
[1769510681012,0.01500421,87865.0,87854.0,0.02206349]
[1769510681875,0.01500421,87865.0,87854.0,0.03344601]
[1769510683406,0.01500421,87865.0,87854.0,0.02206349]
[1769510683540,0.01500421,87865.0,87854.0,0.03344601]
[1769510684083,0.01500421,87865.0,87854.0,0.09035831]
[1769510684248,0.01500421,87865.0,87854.0,0.03344601]
[1769510684974,0.01500421,87865.0,87854.0,0.09035855]
[1769510685156,0.01500421,87865.0,87854.0,0.03344601]
[1769510686666,0.01500421,87865.0,87854.0,0.02206349]
[1769510686897,0.01500421,87865.0,87854.0,0.03344601]
[1769510687014,0.01500421,87865.0,87854.0,0.02206349]
[1769510687214,0.01500421,87865.0,87853.0,0.03356354]
[1769510687474,0.01500421,87865.0,87854.0,0.01138252]
[1769510687648,0.01500421,87865.0,87855.0,0.02206298]
[1769510688517,0.05692297,87872.0,87856.0,0.01138226]
[1769510688708,0.05692297,87872.0,87865.0,0.03310513]
[1769510688903,0.05692297,87872.0,87865.0,0.03448623]
[1769510689305,0.05692297,87872.0,87866.0,0.01138096]
[1769510689454,0.05692297,87872.0,87865.0,0.02310514]
[1769510690078,0.05692297,87872.0,87865.0,0.02324964]
[1769510692736,0.05692297,87872.0,87865.0,0.03463073]
[1769510693458,0.05692297,87872.0,87865.0,0.02324964]
[1769510694268,0.05692297,87872.0,87865.0,0.03463073]
[1769510694620,0.05692297,87872.0,87865.0,0.02324964]
[1769510695238,0.05692297,87872.0,87865.0,0.03463073]
[1769510695842,0.05692297,87872.0,87865.0,0.0915362]
[1769510696061,0.05692297,87872.0,87865.0,0.03463073]
[1769510696504,0.05692297,87872.0,87866.0,0.01138096]
[1769510696708,0.05692297,87872.0,87865.0,0.09153617]
[1769510696865,0.05692297,87872.0,87866.0,0.01138096]
[1769510697066,0.05692297,87872.0,87866.0,0.01152546]
[1769510697804,0.12911488,87880.0,87866.0,0.01152546]
[1769510697805,0.33979223,87880.0,87866.0,0.0001445]
[1769510697950,0.05690642,87878.0,87866.0,0.0001445]
[1769510698151,0.18939877,87878.0,87866.0,0.0001445]
[1769510698566,0.05660642,87878.0,87866.0,0.0001445]
[1769510698784,0.13249235,87877.0,87866.0,0.0001445]
[1769510699988,0.13249235,87877.0,87864.0,0.02317183]
[1769510700190,0.13249235,87877.0,87864.0,0.03455305]
[1769510700408,0.13249235,87877.0,87864.0,0.02317183]
[1769510702653,0.13249235,87877.0,87864.0,0.03470855]
[1769510702874,0.13249235,87877.0,87865.0,0.02332733]
[1769510703014,0.13249235,87877.0,87865.0,0.03470842]
[1769510703382,0.13249235,87877.0,87865.0,0.02332733]
[1769510709952,0.13249235,87877.0,87866.0,0.01197657]
[1769510712822,0.05660642,87878.0,87867.0,0.01138083]
[1769510713094,0.05660642,87878.0,87868.0,0.01197629]
[1769510713218,0.05660642,87878.0,87868.0,0.02335699]
[1769510713422,0.05660642,87878.0,87868.0,0.01197629]
[1769510713658,0.05660642,87878.0,87868.0,0.02335699]
[1769510713869,0.05660642,87878.0,87872.0,0.02332733]
[1769510713870,0.00705149,87878.0,87872.0,0.02332733]
[1769510714033,0.13954384,87888.0,87874.0,0.02332733]
[1769510715384,0.13954384,87888.0,87875.0,0.01418932]
[1769510717471,0.13954384,87888.0,87874.0,0.03604266]
[1769510718870,0.13954384,87888.0,87874.0,0.02332733]
[1769510719885,0.13954384,87888.0,87873.0,0.02409538]
[1769510720374,0.13954384,87888.0,87873.0,0.01271533]
[1769510720804,0.13954384,87888.0,87873.0,0.02409538]
[1769510721494,0.13954384,87888.0,87873.0,0.01271533]
[1769510721910,0.13954384,87888.0,87873.0,0.02409538]
[1769510722110,0.16401302,87888.0,87873.0,0.02409538]
[1769510722434,0.16401302,87888.0,87873.0,0.08099545]
[1769510722613,0.16401302,87888.0,87873.0,0.02409538]
[1769510722768,0.16401302,87888.0,87874.0,0.01137993]
[1769510723570,0.16401302,87888.0,87873.0,0.08099552]
[1769510724078,0.16401302,87888.0,87875.0,0.0113798]
[1769510724232,0.16401302,87888.0,87875.0,0.01272366]
[1769510724586,0.16401302,87888.0,87873.0,0.02410371]